bitfinex-derivatives/quotes_SOLF0:USTF0_20240930
["timestamp","ask_amount","ask_price","bid_price","bid_amount"]
[1727666621671,15.45934117,156.6,156.53,0.12502]
[1727666621874,15.45934117,156.6,156.53,3.31892]
[1727666622675,3.1931,156.58,156.53,3.31892]
[1727666623182,12.27,156.62,156.55,3.1935]
[1727666623377,3.1927,156.6,156.55,3.1935]
[1727666623880,12.27,156.62,156.53,12.39502]
[1727666624183,1.3205,156.63,156.55,12.27]
[1727666624382,1.3205,156.63,156.56,1.2662]
[1727666624577,4.5127,156.63,156.58,3.1929]
[1727666624878,1.3205,156.63,156.57,3.20328476]
[1727666625179,0.12502,156.65,156.57,3.20328476]
[1727666625381,0.12502,156.65,156.58,12.27]
[1727666625979,0.12502,156.65,156.61,3.1923]
[1727666626191,0.12502,156.65,156.6,12.27]
[1727666627086,0.12502,156.65,156.62,3.1921]
[1727666627271,0.12502,156.65,156.6,12.27]
[1727666627684,0.12502,156.65,156.63,3.192]
[1727666628779,0.12502,156.65,156.64,3.1918]
[1727666630387,0.12502,156.71,156.65,3.1916]
[1727666630584,3.1908,156.7,156.65,3.1916]
[1727666631586,0.12502,156.71,156.65,3.1916]
[1727666631887,3.1908,156.69,156.65,3.1916]
[1727666634686,0.12502,156.71,156.64,3.1918]
[1727666634687,3.1911,156.68,156.64,3.1918]
[1727666636282,3.1911,156.68,156.63,4.4921]
[1727666637589,0.12502,156.71,156.63,4.4921]
[1727666637792,3.1913,156.67,156.63,1.3002]
[1727666638385,3.1913,156.67,156.63,4.4922]
[1727666643695,3.1913,156.67,156.63,12.3422]
[1727666644494,1.3148,156.7,156.65,7.85]
[1727666644691,0.12502,156.71,156.67,7.85]
[1727666644889,0.12502,156.71,156.68,7.85]
[1727666645486,0.12502,156.71,156.63,1.3002]
[1727666645487,0.12502,156.71,156.65,12.26]
[1727666645782,3.31552,156.71,156.67,3.1912]
[1727666645986,0.12502,156.71,156.65,12.26]
[1727666646183,0.12502,156.71,156.7,3.1906]
[1727666646395,0.12502,156.71,156.67,12.26]
[1727666648290,0.12502,156.71,156.69,3.1906]
[1727666649191,0.12502,156.71,156.67,12.26]
[1727666649192,0.12502,156.71,156.7,3.1906]
[1727666650788,0.12502,156.71,156.67,12.26]
[1727666650995,0.12502,156.71,156.68,3.1909]
[1727666651187,0.12502,156.71,156.67,12.26]
[1727666651594,0.12502,156.71,156.68,3.1909]
[1727666651897,0.12502,156.71,156.67,12.26]
[1727666652089,0.12502,156.71,156.68,3.1909]
[1727666652795,0.12502,156.71,156.69,3.1907]
[1727666652991,0.12502,156.71,156.67,12.26]
[1727666653193,0.12502,156.71,156.7,3.1906]
[1727666655494,0.12502,156.71,156.65,3.1915]
[1727666655495,3.1908,156.7,156.65,3.1915]
[1727666655707,0.12502,156.71,156.63,1.3002]
[1727666656399,3.1909,156.69,156.65,3.1916]
[1727666657191,3.1909,156.69,156.63,1.3002]
[1727666657391,3.1909,156.69,156.64,3.1917]
[1727666658197,3.1909,156.69,156.65,3.1916]
[1727666658401,3.1907,156.7,156.63,13.5602]
[1727666658590,0.12502,156.71,156.63,13.5602]
[1727666658902,0.12502,156.71,156.67,12.26]
[1727666659707,0.12502,156.71,156.7,3.1906]
[1727666660600,0.12502,156.77,156.7,12.26]
[1727666661198,12.26,156.76,156.67,12.26]
[1727666661397,13.6294,156.76,156.7,3.1905]
[1727666662005,3.1897,156.75,156.7,3.1905]
[1727666663400,4.5588,156.76,156.71,3.1904]
[1727666663597,0.12502,156.77,156.69,15.50873906]
[1727666663804,0.12502,156.77,156.69,12.26]
[1727666664105,0.12502,156.77,156.73,3.1898]
[1727666664899,0.12502,156.77,156.69,15.50075847]
[1727666665402,0.12502,156.77,156.75,3.1895]
[1727666666004,0.12502,156.77,156.74,3.1897]
[1727666668998,0.12502,156.77,156.75,3.1895]
[1727666669408,0.12502,156.77,156.72,12.26]
[1727666670807,0.12502,156.77,156.75,3.1895]
[1727666672313,0.12502,156.77,156.7,1.2676]
[1727666673001,3.31432,156.77,156.72,3.1902]
[1727666673197,0.12502,156.77,156.7,1.2676]
[1727666673709,7.85,156.76,156.72,3.1902]
[1727666674210,11.0395,156.76,156.72,3.1902]
[1727666674710,7.85,156.73,156.7,3.1905]
[1727666675105,7.85,156.73,156.68,7.85]
[1727666675614,13.5091,156.76,156.66,2.628]
[1727666675820,13.5091,156.76,156.69,3.1908]
[1727666676206,3.1899,156.74,156.69,3.1908]
[1727666676608,12.26,156.74,156.66,1.3684]
[1727666676808,3.1905,156.71,156.66,1.3684]
[1727666677006,1.2901,156.73,156.66,1.3684]
[1727666677208,1.2901,156.73,156.66,4.5597]
[1727666677413,1.2901,156.73,156.65,0.12502]
[1727666677414,3.1906,156.7,156.65,0.12502]
[1727666677918,12.26,156.71,156.65,0.12502]
[1727666677919,15.47223141,156.71,156.65,0.12502]
[1727666678109,3.191,156.69,156.65,0.12502]
[1727666678414,15.47223141,156.71,156.65,0.12502]
[1727666679717,15.47223141,156.71,156.65,3.31652]
[1727666679915,12.26,156.71,156.65,0.12502]
[1727666681411,15.38991626,156.71,156.65,0.12502]
[1727666682222,3.1908,156.69,156.65,3.31652]
[1727666682405,15.38991626,156.71,156.65,0.12502]
[1727666682806,1.2901,156.73,156.65,0.12502]
[1727666682807,12.26,156.69,156.65,0.12502]
[1727666683011,1.3062,156.68,156.65,0.12502]
[1727666683226,4.51250674,156.73,156.65,0.12502]
[1727666683227,1.2901,156.73,156.65,0.12502]
[1727666683515,1.2901,156.73,156.65,1.49252]
[1727666685824,13.5501,156.73,156.65,1.49252]
[1727666686215,3.1905,156.71,156.66,3.1912]
[1727666688621,3.1903,156.72,156.67,3.1912]
[1727666691022,3.1903,156.72,156.65,1.49252]
[1727666691222,3.1903,156.72,156.68,3.191]
[1727666693128,3.1911,156.68,156.65,0.12502]
[1727666693429,12.26,156.71,156.65,0.12502]
[1727666694029,12.26,156.71,156.65,3.31652]
[1727666694030,3.1909,156.69,156.65,3.31652]
[1727666696240,3.1902,156.72,156.65,0.12502]
[1727666697431,1.3359,156.74,156.66,12.26]
[1727666697735,1.3359,156.74,156.67,1.3682]
[1727666697933,1.3359,156.74,156.69,3.1908]
[1727666698437,1.3359,156.74,156.67,1.3682]
[1727666698638,1.3359,156.74,156.7,3.1905]
[1727666699530,4.5257,156.74,156.7,3.1905]
[1727666699827,1.3359,156.74,156.71,3.1903]
[1727666700528,1.3359,156.74,156.69,3.1908]
[1727666700928,1.3359,156.74,156.67,3.1911]
[1727666701231,1.3359,156.74,156.65,0.12502]
[1727666701428,3.1904,156.71,156.65,0.12502]
[1727666702029,1.3359,156.74,156.65,12.38502]
[1727666702236,3.19,156.73,156.69,3.1908]
[1727666702939,3.19,156.73,156.68,3.1909]
[1727666703144,1.3359,156.74,156.65,12.38502]
[1727666703838,1.3062,156.75,156.67,12.26]
[1727666704236,4.4958,156.75,156.7,3.1904]
[1727666706242,3.1898,156.74,156.7,3.1904]
[1727666706844,11.37431796,156.76,156.68,1.3086]
[1727666707041,3.31432,156.77,156.73,3.1899]
[1727666708334,3.31432,156.77,156.69,3.19722845]
[1727666708335,0.12502,156.77,156.69,3.19722845]
[1727666708536,0.12502,156.77,156.72,12.26]
[1727666709038,0.12502,156.77,156.75,3.1895]
[1727666713142,0.12502,156.77,156.72,3.19]
[1727666713143,3.1896,156.76,156.72,3.19]
[1727666713349,0.12502,156.77,156.69,1.2541]
[1727666713643,0.12502,156.77,156.68,4.53460204]
[1727666714446,3.1896,156.76,156.68,4.53460204]
[1727666714647,0.12502,156.77,156.68,1.3086]
[1727666714950,3.1899,156.74,156.7,3.1906]
[1727666715243,12.26,156.76,156.68,1.3086]
[1727666715447,1.3329,156.75,156.68,1.3086]
[1727666716256,3.1901,156.73,156.69,3.1908]
[1727666716442,1.3329,156.75,156.68,1.3086]
[1727666717246,3.1898,156.74,156.7,3.1906]
[1727666717945,1.3329,156.75,156.68,1.3086]
[1727666718146,3.1902,156.72,156.68,4.4995]
[1727666718738,1.3329,156.75,156.69,3.1907]
[1727666718739,3.19,156.73,156.69,3.1907]
[1727666719046,0.12502,156.77,156.68,1.3086]
[1727666719248,0.12502,156.77,156.7,12.26]
[1727666719556,0.12502,156.77,156.72,12.26]
[1727666719741,0.12502,156.77,156.74,3.1897]
[1727666720940,0.12502,156.77,156.75,3.1895]
[1727666721147,0.12502,156.77,156.72,12.26]
[1727666722148,0.12502,156.77,156.75,3.1895]
[1727666722339,0.12502,156.77,156.72,12.26]
[1727666722743,0.12502,156.77,156.74,12.26]
[1727666723346,0.12502,156.77,156.76,3.1894]
[1727666729956,0.12502,156.77,156.68,1.3086]
[1727666729957,0.12502,156.77,156.75,3.1895]
[1727666733562,0.12502,156.77,156.75,11.0295]
[1727666733764,0.12502,156.77,156.75,7.84]
[1727666733960,0.12502,156.77,156.68,1.3086]
[1727666734157,0.12502,156.77,156.72,7.84]
[1727666734665,3.1895,156.76,156.72,11.03]
[1727666735261,0.12502,156.77,156.74,3.1897]
[1727666735668,0.12502,156.77,156.71,12.25]
[1727666736667,0.12502,156.77,156.74,12.25]
[1727666737069,0.12502,156.77,156.75,3.1894]
[1727666737268,0.12502,156.77,156.74,12.25]
[1727666738069,0.12502,156.77,156.75,3.1894]
[1727666742474,0.12502,156.77,156.7,12.25]
[1727666742868,0.12502,156.77,156.68,1.3086]
[1727666743064,12.25,156.76,156.68,1.3086]
[1727666743271,0.12502,156.77,156.71,12.25]
[1727666744173,12.37502,156.77,156.68,1.3086]
[1727666744365,1.233,156.76,156.68,1.3086]
[1727666745166,1.3392,156.75,156.68,1.3086]
[1727666745377,12.25,156.74,156.65,0.12502]
[1727666746475,3.1902,156.72,156.67,3.1911]
[1727666746983,12.25,156.74,156.65,0.12502]
[1727666746984,3.1904,156.71,156.66,3.1914]
[1727666747474,3.1904,156.71,156.65,0.12502]
[1727666747475,3.22746424,156.73,156.65,0.12502]
[1727666747678,12.25,156.71,156.65,0.12502]
[1727666747876,15.42453221,156.71,156.65,0.12502]
[1727666748364,1.2533,156.7,156.65,0.12502]
[1727666749081,3.1912,156.68,156.65,0.12502]
[1727666749381,1.2533,156.7,156.65,0.12502]
[1727666749769,12.25,156.69,156.65,0.12502]
[1727666750274,3.1914,156.67,156.65,0.12502]
[1727666750876,1.3661,156.68,156.59,0.12502]
[1727666751171,3.1917,156.65,156.61,3.1924]
[1727666752278,3.1917,156.65,156.6,3.1926]
[1727666752870,4.5572,156.68,156.63,3.1918]
[1727666753066,1.3661,156.68,156.6,12.25]
[1727666753273,1.3661,156.68,156.59,0.12502]
[1727666753467,3.1916,156.65,156.59,0.12502]
[1727666754070,1.3661,156.68,156.59,0.12502]
[1727666754277,3.1915,156.66,156.61,3.1924]
[1727666755682,3.1917,156.65,156.61,3.1924]
[1727666756282,1.3661,156.68,156.59,0.12502]
[1727666756583,3.192,156.64,156.59,3.31782]
[1727666756787,12.25,156.67,156.59,0.12502]
[1727666757077,3.1921,156.63,156.59,0.12502]
[1727666758179,3.1918,156.65,156.6,3.1926]
[1727666758380,12.25,156.67,156.6,3.1926]
[1727666758775,3.1916,156.65,156.59,0.12502]
[1727666758972,3.1916,156.65,156.61,3.1923]
[1727666763182,3.1924,156.62,156.59,3.31782]
[1727666764591,3.1924,156.62,156.59,0.12502]
[1727666765192,3.1926,156.6,156.59,0.12502]
[1727666769600,11.0426,156.6,156.59,0.12502]
[1727666770998,1.3249,156.62,156.59,0.12502]
[1727666771495,9.1742,156.64,156.59,0.12502]
[1727666771800,3.1921,156.63,156.59,3.31772]
[1727666774500,1.3242,156.64,156.59,3.31772]
[1727666774699,3.1923,156.62,156.59,0.12502]
[1727666777096,3.1926,156.6,156.59,0.12502]
[1727666788407,3.1925,156.61,156.59,0.12502]
[1727666788597,16.82228019,156.63,156.59,0.12502]
[1727666790817,3.1926,156.6,156.59,0.12502]
[1727666793010,13.6323,156.63,156.59,0.12502]
[1727666793214,1.3242,156.64,156.6,3.1926]
[1727666793707,3.1922,156.63,156.6,3.1926]
[1727666795607,3.1922,156.63,156.6,11.0426]
[1727666797407,70.3368,156.68,156.62,7.85]
[1727666797608,70.3368,156.68,156.64,7.85]
[1727666798011,3.1914,156.67,156.64,11.0417]
[1727666800409,9.1266,156.69,156.6,1.3181]
[1727666800620,7.85,156.66,156.6,1.3181]
[1727666800819,7.85,156.65,156.6,9.1681]
[1727666801216,7.85,156.65,156.61,3.1923]
[1727666801217,11.0418,156.65,156.61,3.1923]
[1727666801613,7.85,156.65,156.6,9.1681]
[1727666801922,3.1919,156.64,156.6,12.3607]
[1727666802418,7.85,156.65,156.6,9.1681]
[1727666802622,1.2526,156.68,156.6,9.1681]
[1727666802623,3.1922,156.63,156.6,1.3181]
[1727666803618,3.1916,156.66,156.62,7.85]
[1727666803821,7.85,156.67,156.62,7.85]
[1727666804532,7.85,156.65,156.6,1.3181]
[1727666805222,3.1921,156.63,156.6,1.3181]
[1727666805630,7.85,156.64,156.59,3.31772]
[1727666806629,3.1921,156.63,156.59,3.31772]
[1727666806928,1.2526,156.68,156.62,7.85]
[1727666807124,0.12502,156.71,156.67,7.85]
[1727666807523,0.12502,156.71,156.67,11.0411]
[1727666807724,0.12502,156.71,156.67,7.85]
[1727666808125,0.12502,156.71,156.67,11.041]
[1727666808326,3.31562,156.71,156.67,11.041]
[1727666808528,7.97502,156.71,156.66,7.85]
[1727666808934,3.191,156.68,156.64,7.85]
[1727666809432,11.0409,156.69,156.64,11.0417]
[1727666809931,7.85,156.69,156.64,11.0417]
[1727666811131,3.191,156.68,156.64,11.0417]
[1727666811434,7.85,156.69,156.65,7.85]
[1727666811736,3.1909,156.69,156.66,7.85]
[1727666811918,0.12502,156.71,156.66,7.85]
[1727666812120,3.1908,156.7,156.66,7.85]
[1727666812322,0.12502,156.71,156.66,7.85]
[1727666813423,3.1908,156.69,156.66,7.85]
[1727666813932,7.97502,156.71,156.65,7.85]
[1727666814135,3.1911,156.68,156.65,7.85]
[1727666815132,7.97502,156.71,156.65,7.85]
[1727666815727,7.97502,156.71,156.66,7.85]
[1727666816236,3.1909,156.69,156.65,11.0415]
[1727666816533,7.97502,156.71,156.65,7.85]
[1727666817439,3.1912,156.68,156.65,7.85]
[1727666818031,3.1912,156.67,156.65,7.85]
[1727666822946,3.1912,156.67,156.59,0.12502]
[1727666822947,7.85,156.67,156.59,0.12502]
[1727666823140,7.85,156.64,156.59,0.12502]
[1727666823742,3.1924,156.62,156.59,0.12502]
[1727666824042,7.85,156.64,156.59,0.12502]
[1727666824255,3.1925,156.61,156.59,0.12502]
[1727666824437,2.5814,156.66,156.59,0.12502]
[1727666824640,11.33848022,156.72,156.64,7.85]
[1727666824844,3.1913,156.67,156.65,7.85]
[1727666825548,3.1913,156.67,156.63,3.1919]
[1727666830448,3.1914,156.66,156.62,3.1922]
[1727666830652,12.27,156.68,156.59,0.12502]
[1727666830954,1.2444,156.7,156.59,0.12502]
[1727666830955,12.27,156.66,156.59,0.12502]
[1727666831454,3.1918,156.64,156.59,0.12502]
[1727666831651,12.27,156.66,156.59,0.12502]
[1727666832047,3.1918,156.64,156.59,0.12502]
[1727666832753,3.1918,156.64,156.6,3.1926]
[1727666833141,3.1918,156.64,156.59,0.12502]
[1727666833352,3.1918,156.64,156.59,3.31782]
[1727666833551,12.27,156.66,156.59,0.12502]
[1727666833749,1.3559,156.65,156.59,0.12502]
[1727666834551,1.3559,156.65,156.59,3.31782]
[1727666835249,3.1919,156.64,156.59,3.31782]
[1727666835844,1.3559,156.65,156.59,3.31782]
[1727666836042,3.1921,156.63,156.59,3.31782]
[1727666836252,3.1921,156.63,156.59,0.12502]
[1727666836447,1.2699,156.64,156.59,0.12502]
[1727666836654,3.1924,156.61,156.59,0.12502]
[1727666836852,4.44169913,156.64,156.59,0.12502]
[1727666837751,3.1925,156.61,156.59,0.12502]
[1727666839159,1.3559,156.65,156.59,0.12502]
[1727666839457,3.192,156.64,156.6,3.1926]
[1727666841155,1.3559,156.65,156.59,0.12502]
[1727666841350,3.1921,156.63,156.59,3.31782]
[1727666843055,1.3559,156.65,156.59,0.12502]
[1727666843253,1.3559,156.65,156.59,12.39502]
[1727666844459,3.1919,156.64,156.6,3.1926]
[1727666844761,1.3559,156.65,156.59,12.39502]
[1727666845058,3.1921,156.63,156.59,15.58782]
[1727666846162,1.3559,156.65,156.59,12.39502]
[1727666846364,1.3559,156.65,156.59,0.12502]
[1727666847061,3.1924,156.62,156.59,0.12502]
[1727666848756,1.3559,156.65,156.59,0.12502]
[1727666848957,3.1921,156.63,156.59,0.12502]
[1727666849658,3.1923,156.62,156.59,0.12502]
[1727666851565,3.1923,156.62,156.59,7.97502]
[1727666855163,1.3326,156.69,156.61,7.85]
[1727666855472,1.3326,156.69,156.64,7.85]
[1727666855671,10.98175503,156.7,156.6,1.2964]
[1727666855672,1.3264,156.72,156.68,7.85]
[1727666855874,0.12502,156.71,156.69,7.85]
[1727666856371,0.12502,156.71,156.7,7.85]
[1727666857281,0.12502,156.71,156.62,1.2042]
[1727666857481,0.12502,156.71,156.67,7.85]
[1727666857778,0.12502,156.71,156.65,12.26]
[1727666858482,3.31552,156.71,156.66,3.1914]
[1727666859774,3.1906,156.7,156.65,15.4516]
[1727666860181,0.12502,156.71,156.65,12.26]
[1727666860579,3.1909,156.69,156.65,12.26]
[1727666860978,0.12502,156.71,156.63,12.26]
[1727666862079,3.1912,156.68,156.63,15.4519]
[1727666862673,0.12502,156.71,156.63,15.4519]
[1727666862978,0.12502,156.71,156.61,1.2729]
[1727666862979,3.1916,156.66,156.61,3.1923]
[1727666863197,1.3211,156.7,156.6,13.5564]
[1727666863198,2.6845,156.7,156.6,13.5564]
[1727666863491,3.1918,156.65,156.6,16.7489]
[1727666863692,3.1918,156.65,156.6,13.5564]
[1727666864285,3.1918,156.65,156.6,16.749]
[1727666865183,3.1918,156.65,156.61,3.1924]
[1727666865782,3.19503002,156.68,156.6,13.5564]
[1727666865983,3.1919,156.64,156.6,1.2964]
[1727666866184,15.39721732,156.69,156.6,1.2964]
[1727666866790,12.26,156.67,156.6,1.2964]
[1727666867587,3.1922,156.63,156.6,1.2964]
[1727666868881,3.1922,156.63,156.59,3.31782]
[1727666869088,12.26,156.67,156.59,0.12502]
[1727666869589,3.1922,156.63,156.59,3.31782]
[1727666871197,12.26,156.67,156.59,0.12502]
[1727666871392,3.1926,156.61,156.59,0.12502]
[1727666872994,3.1926,156.61,156.53,0.12502]
[1727666872995,3.1934,156.57,156.53,0.12502]
[1727666873194,12.26,156.61,156.53,0.12502]
[1727666873493,3.9941,156.64,156.54,12.26]
[1727666873698,3.1926,156.61,156.57,3.1932]
[1727666874199,3.1926,156.61,156.56,3.1934]
[1727666876196,3.13174877,156.63,156.56,3.1934]
[1727666876396,3.1925,156.61,156.56,3.1934]
[1727666877898,3.1927,156.6,156.56,3.1934]
[1727666878702,3.13174877,156.63,156.58,3.193]
[1727666879092,3.1924,156.62,156.57,3.1932]
[1727666879593,3.1924,156.62,156.58,7.85]
[1727666880802,7.85,156.62,156.56,7.85]
[1727666880994,7.85,156.61,156.56,11.0434]
[1727666882092,3.17388803,156.62,156.56,11.0434]
[1727666882093,3.1928,156.6,156.56,11.0434]
[1727666882298,7.85,156.63,156.58,3.193]
[1727666882707,11.06266355,156.63,156.58,3.193]
[1727666883003,2.6425,156.64,156.59,7.85]
[1727666883203,1.343,156.64,156.6,7.85]
[1727666884096,12.385,156.64,156.6,3.1926]
[1727666890303,1.343,156.64,156.6,7.85]
[1727666890500,3.31672,156.65,156.62,7.85]
[1727666892004,3.31672,156.65,156.62,11.0421]
[1727666892904,0.12502,156.65,156.62,11.0421]
[1727666895598,3.31672,156.65,156.62,11.0421]
[1727666895800,7.97502,156.65,156.58,1.2902]
[1727666896011,7.97502,156.65,156.58,9.1402]
[1727666896206,3.192,156.63,156.58,1.2902]
[1727666896410,3.192,156.63,156.59,11.0427]
[1727666898412,7.97502,156.65,156.58,1.2902]
[1727666898613,3.1922,156.63,156.59,7.85]
[1727666898806,7.97502,156.65,156.59,7.85]
[1727666899109,7.85,156.63,156.59,7.85]
[1727666899308,3.1924,156.62,156.59,7.85]
[1727666905108,3.1924,156.62,156.58,4.4831]
[1727666905310,3.1924,156.62,156.58,12.3331]
[1727666907824,3.1924,156.62,156.59,7.85]
[1727666908019,3.1924,156.62,156.59,11.0428]
[1727666908521,3.31672,156.65,156.61,11.0422]
[1727666908719,3.31672,156.65,156.61,7.85]
[1727666908720,0.12502,156.65,156.61,7.85]
[1727666909114,0.12502,156.65,156.62,3.1921]
[1727666909315,0.12502,156.65,156.63,7.85]
[1727666909514,0.12502,156.65,156.64,7.85]
[1727666909714,0.12502,156.65,156.64,11.0418]
[1727666912318,0.12502,156.65,156.64,7.85]
[1727666917523,0.12502,156.65,156.58,1.2902]
[1727666918021,0.12502,156.65,156.62,7.85]
[1727666919320,0.12502,156.65,156.62,11.0422]
[1727666920820,0.12502,156.65,156.62,7.85]
[1727666921021,3.31682,156.65,156.62,7.85]
[1727666922528,3.31682,156.65,156.58,1.2902]
[1727666922529,0.12502,156.65,156.64,3.1918]
[1727666926533,0.12502,156.65,156.63,11.0419]
[1727666926736,0.12502,156.65,156.63,7.85]
[1727666927637,0.12502,156.65,156.64,7.85]
[1727666929037,0.12502,156.65,156.64,11.0418]
[1727666929239,0.12502,156.65,156.64,7.85]
[1727666929935,0.12502,156.65,156.64,11.0418]
[1727666932126,0.12502,156.71,156.64,11.04685743]
[1727666932333,0.12502,156.71,156.7,7.85]
[1727666933424,0.12502,156.71,156.7,11.0406]
[1727666934129,0.12502,156.71,156.69,7.85]
[1727666935630,0.12502,156.71,156.7,11.0406]
[1727666936240,0.12502,156.77,156.7,7.85]
[1727666936433,0.12502,156.77,156.75,7.85]
[1727666937933,0.12502,156.77,156.73,3.1899]
[1727666938132,0.12502,156.77,156.75,7.85]
[1727666939635,0.12502,156.77,156.71,4.4911]
[1727666939835,0.12502,156.77,156.72,7.85]
[1727666940346,3.1895,156.76,156.72,7.85]
[1727666940729,0.12502,156.77,156.71,1.3009]
[1727666940933,3.1898,156.75,156.71,1.3009]
[1727666941740,3.1898,156.75,156.71,9.1509]
[1727666946159,3.1898,156.75,156.71,12.3413]
[1727666946854,3.1898,156.75,156.71,9.1509]
[1727666947058,3.1898,156.74,156.71,7.85]
[1727666948159,3.1904,156.71,156.67,1.2633]
[1727666948354,3.1904,156.71,156.67,9.1133]
[1727666949858,3.1907,156.7,156.67,9.1133]
[1727666950159,7.85,156.72,156.67,9.1133]
[1727666951253,7.85,156.72,156.67,12.3045]
[1727666951254,3.1904,156.71,156.67,12.3045]
[1727666953062,3.1904,156.71,156.67,4.4545]
[1727666953361,3.1904,156.71,156.67,12.3045]
[1727666953561,3.1908,156.69,156.65,7.97502]
[1727666953763,7.85,156.69,156.65,0.12502]
[1727666954560,3.191,156.68,156.65,0.12502]
[1727666954760,7.85,156.69,156.65,0.12502]
[1727666955165,11.0409,156.69,156.65,0.12502]
[1727666955663,11.0409,156.69,156.65,3.31662]
[1727666956666,3.191,156.68,156.65,0.12502]
[1727666956867,3.191,156.68,156.65,7.97502]
[1727666957258,7.85,156.69,156.65,0.12502]
[1727666957471,7.85,156.68,156.65,0.12502]
[1727666957854,3.1914,156.67,156.65,0.12502]
[1727666962065,7.85,156.68,156.65,0.12502]
[1727666962256,3.1914,156.66,156.65,0.12502]
[1727666963673,7.85,156.68,156.65,0.12502]
[1727666963869,3.1913,156.67,156.65,0.12502]
[1727666971879,7.85,156.66,156.65,0.12502]
[1727666972171,11.0414,156.66,156.65,0.12502]
[1727666973566,11.0414,156.66,156.59,0.12502]
[1727666973567,3.1918,156.64,156.59,0.12502]
[1727666973771,11.0418,156.64,156.6,3.1925]
[1727666974868,3.1918,156.64,156.6,3.1925]
[1727666975175,3.1918,156.64,156.6,11.0425]
[1727666975678,1.3581,156.66,156.59,0.12502]
[1727666975871,56.13313363,156.7,156.65,7.85]
[1727666976381,3.1908,156.69,156.65,11.0415]
[1727666976671,3.1908,156.69,156.59,0.12502]
[1727666976672,56.13313363,156.7,156.66,7.85]
[1727666976875,59.32393363,156.7,156.66,11.0414]
[1727666977083,7.97502,156.71,156.69,7.85]
[1727666977084,0.12502,156.71,156.69,7.85]
[1727666977583,0.12502,156.71,156.7,7.85]
[1727666977984,0.12502,156.71,156.69,11.0408]
[1727666978285,0.12502,156.71,156.69,7.85]
[1727666979372,0.12502,156.71,156.64,3.9794]
[1727666979682,0.12502,156.71,156.66,7.85]
[1727666980278,3.1906,156.7,156.66,11.0414]
[1727666981677,0.12502,156.71,156.65,7.85]
[1727666981877,7.85,156.69,156.64,9.1709]
[1727666982481,3.1909,156.69,156.65,7.85]
[1727666983396,3.1909,156.69,156.65,11.0416]
[1727666983583,3.1909,156.69,156.65,7.85]
[1727666986284,3.1909,156.69,156.65,11.0416]
[1727666989480,0.12502,156.71,156.65,7.85]
[1727666989681,0.12502,156.71,156.67,7.85]
[1727666990691,3.1906,156.7,156.67,7.85]
[1727666991090,3.1906,156.7,156.64,1.3209]
[1727666991091,7.85,156.7,156.64,1.3209]
[1727666991285,7.85,156.7,156.65,11.0416]
[1727666991286,3.191,156.69,156.65,11.0416]
[1727666992093,7.85,156.7,156.65,7.85]
[1727666992286,3.1907,156.7,156.66,11.0414]
[1727666994884,3.1909,156.69,156.66,7.85]
[1727666995389,3.1909,156.69,156.65,11.0416]
[1727666996179,3.1909,156.69,156.66,7.85]
[1727666996379,11.0407,156.7,156.66,11.0413]